[Event "FIDE WSTC Open 65 2025"]
[Site "Prague"]
[Date "2025.02.19"]
[Round "3.27"]
[White "Van Egmond, Rogier"]
[Black "Moen, Ole Christian"]
[Result "1/2-1/2"]
[Annotator "ChessBase"]
[ECO "D02"]
[WhiteElo "2057"]
[BlackElo "2201"]
[PlyCount "121"]
[EventDate "2025.02.17"]
[EventType "team-tourn"]
[EventCountry "CZE"]
[SourceTitle "playchess.com"]
[Source "ChessBase"]
[SourceQuality "1"]
[TimeControl "40/5400+30:1800+30"]

1. d4 {[%emt 0:00:05]} Nf6 {[%emt 0:00:08]} 2. Nf3 {[%emt 0:00:06]} g6 {[%emt 0:00:08]} 3. g3 {[%emt 0:00:22]} Bg7 {[%emt 0:00:09]} 4. Bg2 {[%emt 0:00:06]} O-O {[%emt 0:00:19]} 5. O-O {[%emt 0:00:07]} d5 {[%emt 0:00:27]} 6. Bf4 {[%emt 0:00:20]} c5 {[%emt 0:00:30]} 7. dxc5 {[%emt 0:00:07]} Ne4 {[%emt 0:00:24]} 8. Be5 {[%emt 0:01:44]} f6 {[%emt 0:06:26]} 9. Bxb8 {[%emt 0:00:11]} Rxb8 {[%emt 0:00:07]} 10. Ne1 {[%emt 0:07:35]} f5 {[%emt 0:01:14]} 11. c3 {[%emt 0:00:44]} a5 {[%emt 0:02:04]} 12. Nd3 {[%emt 0:08:33]} e6 {[%emt 0:06:31]} 13. Qb3 {[%emt 0:06:04]} Qc7 {[%emt 0:11:28]} 14. Qa3 {[%emt 0:04:58]} Bd7 {[%emt 0:02:24]} 15. f3 {[%emt 0:01:31]} Nf6 {[%emt 0:02:39]} 16. Nd2 {[%emt 0:05:09]} Rfc8 {[%emt 0:03:35]} 17. Rab1 {[%emt 0:08:24]} Bh6 {[%emt 0:10:26]} 18. f4 {[%emt 0:05:47]} Ne4 {[%emt 0:02:51]} 19. Bxe4 {[%emt 0:07:39]} dxe4 {[%emt 0:03:26]} 20. Ne5 {[%emt 0:00:13]} Bf8 {[%emt 0:02:36]} 21. b4 {[%emt 0:02:35]} Bb5 {[%emt 0:01:29]} 22. Qb3 {[%emt 0:03:45]} Bxe2 {[%emt 0:04:43]} 23. Qxe6+ {[%emt 0:00:45]} Kg7 {[%emt 0:00:12]} 24. Rfe1 {[%emt 0:07:45]} Bb5 {[%emt 0:02:18]} 25. Ndc4 {[%emt 0:03:00]} Bxc4 {[%emt 0:06:15]} 26. Nxc4 {[%emt 0:01:42]} axb4 {[%emt 0:05:34]} 27. cxb4 {[%emt 0:00:21]} Re8 {[%emt 0:00:21]} 28. Qb6 {[%emt 0:00:31]} Qxb6 {[%emt 0:00:41]} 29. Nxb6 {[%emt 0:00:36]} Rbd8 {[%emt 0:00:10]} 30. Rbd1 {[%emt 0:02:38]} Kf7 {[%emt 0:00:08]} 31. Kf2 {[%emt 0:04:47]} Bg7 {[%emt 0:01:21]} 32. Nc4 {[%emt 0:01:34]} Bf8 {[%emt 0:07:03]} 33. Ke2 {[%emt 0:02:04]} Ke6 {[%emt 0:02:05]} 34. Rxd8 {[%emt 0:02:22]} Rxd8 {[%emt 0:00:08]} 35. Rd1 {[%emt 0:00:41]} Rxd1 {[%emt 0:00:06]} 36. Kxd1 {[%emt 0:00:01]} Kd5 {[%emt 0:00:13]} 37. Ne5 {[%emt 0:09:00]} Bg7 {[%emt 0:03:30]} 38. Nf7 {[%emt 0:01:42]} Bc3 {[%emt 0:00:58]} 39. a3 {[%emt 0:00:36]} Bb2 {[%emt 0:00:07]} 40. a4 {[%emt 0:03:20]} Ba3 {[%emt 0:00:08]} 41. Nd8 {[%emt 0:09:19]} Bxb4 {[%emt 0:00:38]} 42. Nxb7 {[%emt 0:00:08]} Bxc5 {[%emt 0:00:05]} 43. Ke2 {[%emt 0:02:03]} Be7 {[%emt 0:03:50]} 44. h3 {[%emt 0:04:05]} Bd6 {[%emt 0:02:00]} 45. h4 {[%emt 0:05:28]} Bc7 {[%emt 0:00:50]} 46. a5 {[%emt 0:00:28]} Kc6 {[%emt 0:00:43]} 47. a6 {[%emt 0:00:01]} Bb6 {[%emt 0:00:27]} 48. Ke1 {[%emt 0:01:26]} Kb5 {[%emt 0:04:42]} 49. h5 {[%emt 0:01:29]} Kxa6 {[%emt 0:01:46]} 50. hxg6 {[%emt 0:00:10]} hxg6 {[%emt 0:00:12]} 51. Nd6 {[%emt 0:00:11]} Bd4 {[%emt 0:01:40]} 52. Ke2 {[%emt 0:04:17]} Kb6 {[%emt 0:01:42]} 53. Nc8+ {[%emt 0:00:10]} Kc6 {[%emt 0:01:28]} 54. Ne7+ {[%emt 0:00:03]} Kd6 {[%emt 0:00:14]} 55. Nxg6 {[%emt 0:00:02]} Bf6 {[%emt 0:00:11]} 56. Ke3 {[%emt 0:02:16]} Kd5 {[%emt 0:00:23]} 57. Nf8 {[%emt 0:00:56]} Bd4+ {[%emt 0:03:33]} 58. Ke2 {[%emt 0:00:01]} Bb6 {[%emt 0:05:37]} 59. Ng6 {[%emt 0:00:57]} Bd8 {[%emt 0:01:06]} 60. Ne5 {[%emt 0:00:54]} Bf6 {[%emt 0:00:54]} 61. Nf3 {[%emt 0:02:54]} 1/2-1/2

[Event "FIDE WSTC Open 65 2025"]
[Site "Prague"]
[Date "2025.02.19"]
[Round "3.28"]
[White "Bjerke, Richard"]
[Black "Baarslag, Ed"]
[Result "1/2-1/2"]
[Annotator "NA"]
[ECO "D35"]
[WhiteElo "2037"]
[BlackElo "2005"]
[PlyCount "53"]
[EventDate "2025.02.17"]
[EventType "team-tourn"]
[EventCountry "CZE"]
[SourceTitle "playchess.com"]
[Source "ChessBase"]
[SourceQuality "1"]
[TimeControl "40/5400+30:1800+30"]

1. d4 {[%emt 0:00:04]} Nf6 {[%emt 0:00:39]} 2. c4 {[%emt 0:00:31]} e6 {[%emt 0:00:06]} 3. Nc3 {[%emt 0:00:20]} d5 {[%emt 0:00:12]} 4. cxd5 {[%emt 0:00:41]} exd5 {[%emt 0:00:12]} 5. Bg5 {[%emt 0:00:17]} c6 {[%emt 0:00:54]} 6. e3 {[%emt 0:00:55]} Bd6 {[%emt 0:00:38]} 7. Bd3 {[%emt 0:00:57]} O-O {[%emt 0:00:25]} 8. Nge2 {[%emt 0:01:24]} Re8 {[%emt 0:00:33]} 9. Qc2 {[%emt 0:02:20]} h6 {[%emt 0:00:21]} 10. Bh4 {[%emt 0:00:54]} Na6 {[%emt 0:07:37]} 11. a3 {[%emt 0:04:58]} Nc7 {[%emt 0:01:07]} 12. Bg3 {[%emt 0:05:52]} Ne6 {[%emt 0:09:55]} 13. O-O {[%emt 0:09:08]} Ng5 {[%emt 0:04:35]} 14. Bxd6 {[%emt 0:06:35]} Qxd6 {[%emt 0:00:08]} 15. Ng3 {[%emt 0:01:20]} Qe7 {[%emt 0:04:58]} 16. Rae1 {[%emt 0:12:03]} Nge4 {[%emt 0:02:28]} 17. Nge2 {[%emt 0:02:51]} Bf5 {[%emt 0:07:00]} 18. f3 {[%emt 0:03:18]} Nxc3 {[%emt 0:00:41]} 19. Nxc3 {[%emt 0:00:10]} Bxd3 {[%emt 0:00:21]} 20. Qxd3 {[%emt 0:00:09]} Rad8 {[%emt 0:00:43]} 21. b4 {[%emt 0:08:49]} a6 {[%emt 0:04:49]} 22. Na4 {[%emt 0:01:44]} Rd6 {[%emt 0:14:55]} 23. Nc5 {[%emt 0:11:01]} b6 {[%emt 0:02:41]} 24. Na4 {[%emt 0:00:26]} Qa7 {[%emt 0:08:09]} 25. Nc3 {[%emt 0:08:49]} c5 {[%emt 0:08:05]} 26. b5 {[%emt 0:01:43]} a5 {[%emt 0:02:15]} 27. a4 {[%emt 0:05:17]} 1/2-1/2

[Event "FIDE WSTC Open 65 2025"]
[Site "Prague"]
[Date "2025.02.19"]
[Round "3.29"]
[White "Vinke, Dietmar"]
[Black "Jansa, Vlastimil"]
[Result "0-1"]
[Annotator "RC"]
[ECO "D77"]
[WhiteElo "2087"]
[BlackElo "2267"]
[PlyCount "53"]
[EventDate "2025.02.17"]
[EventType "team-tourn"]
[EventCountry "CZE"]
[SourceTitle "playchess.com"]
[Source "ChessBase"]
[SourceQuality "1"]
[TimeControl "40/5400+30:1800+30"]

1. d4 {[%emt 0:00:06]} Nf6 {[%emt 0:02:46]} 2. Nf3 {[%emt 0:01:21]} g6 {[%emt 0:00:20]} 3. g3 {[%emt 0:00:07]} Bg7 {[%emt 0:00:25]} 4. Bg2 {[%emt 0:00:03]} O-O {[%emt 0:01:00]} 5. O-O {[%emt 0:00:05]} d5 {[%emt 0:00:47]} 6. c4 {[%emt 0:00:11]} dxc4 {[%emt 0:00:50]} 7. Na3 {[%emt 0:03:25]} Nc6 {[%emt 0:04:32]} 8. Nxc4 {[%emt 0:02:27]} Be6 {[%emt 0:00:18]} 9. b3 {[%emt 0:18:10]} Bd5 {[%emt 0:07:50]} 10. Bb2 {[%emt 0:01:04]} a5 {[%emt 0:00:32]} 11. Rc1 {[%emt 0:12:46]} a4 {[%emt 0:13:50]} 12. Ne3 {[%emt 0:20:59]} Be4 {[%emt 0:05:42]} 13. bxa4 {[%emt 0:00:34]} Bh6 {[%emt 0:23:06]} 14. Rc3 {[%emt 0:04:48]} Nb4 {[%emt 0:04:39]} 15. Nh4 {[%emt 0:04:54]} Bxg2 {[%emt 0:04:11]} 16. Nhxg2 {[%emt 0:00:03]} Qd7 {[%emt 0:07:17]} 17. Ra3 {[%emt 0:00:26]} Ra6 {[%emt 0:02:49]} 18. Qb3 {[%emt 0:05:24]} Nbd5 {[%emt 0:03:14]} 19. Nc4 {[%emt 0:07:46]} c6 {[%emt 0:01:15]} 20. a5 {[%emt 0:00:26]} Ne4 {[%emt 0:01:11]} 21. Qd3 {[%emt 0:00:30]} f5 {[%emt 0:01:19]} 22. f3 {[%emt 0:01:43]} Nd6 {[%emt 0:00:43]} 23. Ne5 {[%emt 0:00:34]} Qe6 {[%emt 0:01:03]} 24. e3 {[%emt 0:06:07]} Nf7 {[%emt 0:02:16]} 25. Nxf7 {[%emt 0:02:17]} Qxf7 {[%emt 0:00:23]} 26. Rb1 {[%emt 0:01:39]} Nb4 {[%emt 0:02:18]} 27. Bc3 {[%emt 0:00:56]} 0-1

[Event "FIDE WSTC Open 65 2025"]
[Site "Prague"]
[Date "2025.02.19"]
[Round "3.30"]
[White "Polasek, Jaroslav"]
[Black "Uimonen, Matti"]
[Result "1-0"]
[Annotator "RC"]
[ECO "B01"]
[WhiteElo "2344"]
[BlackElo "2056"]
[PlyCount "75"]
[EventDate "2025.02.17"]
[EventType "team-tourn"]
[EventCountry "CZE"]
[SourceTitle "playchess.com"]
[Source "ChessBase"]
[SourceQuality "1"]
[TimeControl "40/5400+30:1800+30"]

1. e4 {[%emt 0:02:51]} d5 {[%emt 0:00:29]} 2. exd5 {[%emt 0:00:09]} Qxd5 {[%emt 0:00:07]} 3. Nc3 {[%emt 0:00:16]} Qd8 {[%emt 0:00:41]} 4. d4 {[%emt 0:03:18]} Nf6 {[%emt 0:00:11]} 5. Nf3 {[%emt 0:00:28]} Bf5 {[%emt 0:01:05]} 6. Ne5 {[%emt 0:14:56]} c6 {[%emt 0:04:23]} 7. Bc4 {[%emt 0:07:22]} e6 {[%emt 0:11:01]} 8. g4 {[%emt 0:00:34]} Be4 {[%emt 0:00:27]} 9. Nxe4 {[%emt 0:00:17]} Nxe4 {[%emt 0:00:08]} 10. Qf3 {[%emt 0:05:48]} Nd6 {[%emt 0:00:30]} 11. Bb3 {[%emt 0:00:10]} Nd7 {[%emt 0:01:25]} 12. Bf4 {[%emt 0:04:07]} g5 {[%emt 0:22:18]} 13. Bg3 {[%emt 0:10:09]} Qe7 {[%emt 0:08:01]} 14. O-O-O {[%emt 0:00:35]} Rc8 {[%emt 0:03:52]} 15. Nxd7 {[%emt 0:08:04]} Kxd7 {[%emt 0:00:41]} 16. Be5 {[%emt 0:00:50]} Rg8 {[%emt 0:00:32]} 17. c4 {[%emt 0:00:45]} Bg7 {[%emt 0:04:13]} 18. Rhe1 {[%emt 0:00:47]} Ne8 {[%emt 0:07:41]} 19. Kb1 {[%emt 0:07:55]} Bxe5 {[%emt 0:01:14]} 20. dxe5+ {[%emt 0:00:13]} Kc7 {[%emt 0:00:08]} 21. Qe3 {[%emt 0:01:10]} Kb8 {[%emt 0:00:43]} 22. Qd3 {[%emt 0:01:21]} Nc7 {[%emt 0:01:38]} 23. Qd7 {[%emt 0:01:24]} Qf8 {[%emt 0:02:35]} 24. Re3 {[%emt 0:01:44]} Qg7 {[%emt 0:09:53]} 25. Ba4 {[%emt 0:03:27]} Na6 {[%emt 0:04:33]} 26. Rb3 {[%emt 0:01:22]} Rc7 {[%emt 0:01:27]} 27. Qd4 {[%emt 0:02:55]} c5 {[%emt 0:02:40]} 28. Qe3 {[%emt 0:01:28]} Nb4 {[%emt 0:02:23]} 29. Rc3 {[%emt 0:00:32]} f6 {[%emt 0:02:13]} 30. a3 {[%emt 0:00:33]} Nc6 {[%emt 0:00:16]} 31. Bxc6 {[%emt 0:00:06]} Rxc6 {[%emt 0:00:13]} 32. Rcd3 {[%emt 0:01:02]} fxe5 {[%emt 0:01:55]} 33. Rd7 {[%emt 0:00:17]} Qg6+ {[%emt 0:00:20]} 34. Ka1 {[%emt 0:03:46]} e4 {[%emt 0:01:08]} 35. Qb3 {[%emt 0:02:20]} b6 {[%emt 0:03:21]} 36. Qa4 {[%emt 0:00:32]} Rc7 {[%emt 0:03:03]} 37. Rxc7 {[%emt 0:00:11]} Kxc7 {[%emt 0:00:05]} 38. Rd7+ {[%emt 0:00:23]} 1-0

[Event "FIDE WSTC Open 65 2025"]
[Site "Prague"]
[Date "2025.02.19"]
[Round "3.31"]
[White "Rantanen, Riku"]
[Black "Spacek, Petr"]
[Result "1/2-1/2"]
[Annotator "RC"]
[ECO "D33"]
[WhiteElo "2070"]
[BlackElo "2273"]
[PlyCount "26"]
[EventDate "2025.02.17"]
[EventType "team-tourn"]
[EventCountry "CZE"]
[SourceTitle "playchess.com"]
[Source "ChessBase"]
[SourceQuality "1"]
[TimeControl "40/5400+30:1800+30"]

1. Nf3 {[%emt 0:00:08]} c5 {[%emt 0:06:02]} 2. c4 {[%emt 0:00:24]} e6 {[%emt 0:00:45]} 3. g3 {[%emt 0:00:24]} d5 {[%emt 0:00:21]} 4. cxd5 {[%emt 0:00:13]} exd5 {[%emt 0:00:02]} 5. d4 {[%emt 0:00:09]} Nc6 {[%emt 0:00:12]} 6. Bg2 {[%emt 0:00:09]} Nf6 {[%emt 0:00:41]} 7. O-O {[%emt 0:00:16]} Be6 {[%emt 0:00:33]} 8. Nc3 {[%emt 0:02:36]} h6 {[%emt 0:02:58]} 9. b3 {[%emt 0:07:43]} Rc8 {[%emt 0:01:43]} 10. Bb2 {[%emt 0:00:18]} b6 {[%emt 0:09:05]} 11. Rc1 {[%emt 0:05:09]} Be7 {[%emt 0:00:28]} 12. e3 {[%emt 0:09:15]} O-O {[%emt 0:00:56]} 13. Ne5 {[%emt 0:10:39]} cxd4 {[%emt 0:03:07]} 1/2-1/2

[Event "FIDE WSTC Open 65 2025"]
[Site "Prague"]
[Date "2025.02.19"]
[Round "3.33"]
[White "Urban, Zdenek"]
[Black "Kyas, Juergen"]
[Result "1/2-1/2"]
[Annotator "ChessBase"]
[ECO "D85"]
[WhiteElo "2155"]
[BlackElo "2173"]
[PlyCount "27"]
[EventDate "2025.02.17"]
[EventType "team-tourn"]
[EventCountry "CZE"]
[SourceTitle "playchess.com"]
[Source "ChessBase"]
[SourceQuality "1"]
[TimeControl "40/5400+30:1800+30"]

1. d4 {[%emt 0:00:30]} Nf6 {[%emt 0:00:09]} 2. c4 {[%emt 0:00:05]} g6 {[%emt 0:00:07]} 3. Nc3 {[%emt 0:00:13]} d5 {[%emt 0:00:04]} 4. cxd5 {[%emt 0:00:14]} Nxd5 {[%emt 0:00:04]} 5. e4 {[%emt 0:00:06]} Nxc3 {[%emt 0:00:10]} 6. bxc3 {[%emt 0:00:08]} Bg7 {[%emt 0:00:06]} 7. Bc4 {[%emt 0:00:13]} c5 {[%emt 0:00:27]} 8. Be3 {[%emt 0:00:09]} Qa5 {[%emt 0:01:35]} 9. Qd2 {[%emt 0:00:33]} Nc6 {[%emt 0:00:12]} 10. Ne2 {[%emt 0:00:20]} O-O {[%emt 0:01:19]} 11. Rb1 {[%emt 0:02:54]} cxd4 {[%emt 0:14:26]} 12. cxd4 {[%emt 0:00:12]} Rd8 {[%emt 0:01:11]} 13. Bd5 {[%emt 0:23:57]} Qxd2+ {[%emt 0:06:01]} 14. Kxd2 {[%emt 0:00:17]} 1/2-1/2

[Event "FIDE WSTC Open 65 2025"]
[Site "Prague"]
[Date "2025.02.19"]
[Round "3.34"]
[White "Schmidt, Bodo"]
[Black "Sejkora, Vlastimil"]
[Result "0-1"]
[Annotator "RC"]
[ECO "B07"]
[WhiteElo "2256"]
[BlackElo "2121"]
[PlyCount "76"]
[EventDate "2025.02.17"]
[EventType "team-tourn"]
[EventCountry "CZE"]
[SourceTitle "playchess.com"]
[Source "ChessBase"]
[SourceQuality "1"]
[TimeControl "40/5400+30:1800+30"]

1. d4 {[%emt 0:00:00]} g6 {[%emt 0:00:32]} 2. Nf3 {[%emt 0:00:13]} Bg7 {[%emt 0:00:02]} 3. c3 {[%emt 0:02:22]} d6 {[%emt 0:01:19]} 4. e4 {[%emt 0:01:33]} Nf6 {[%emt 0:01:29]} 5. Nbd2 {[%emt 0:00:27]} c6 {[%emt 0:00:26]} 6. Bc4 {[%emt 0:10:01]} O-O {[%emt 0:03:31]} 7. e5 {[%emt 0:04:40]} Ne8 {[%emt 0:01:56]} 8. O-O {[%emt 0:01:41]} Nc7 {[%emt 0:04:34]} 9. a4 {[%emt 0:03:31]} d5 {[%emt 0:02:49]} 10. Bd3 {[%emt 0:00:46]} Nd7 {[%emt 0:02:25]} 11. Re1 {[%emt 0:00:17]} c5 {[%emt 0:08:35]} 12. h4 {[%emt 0:04:42]} Ne6 {[%emt 0:07:23]} 13. Nf1 {[%emt 0:00:52]} f5 {[%emt 0:00:17]} 14. exf6 {[%emt 0:03:06]} Nxf6 {[%emt 0:00:16]} 15. Ng3 {[%emt 0:00:33]} cxd4 {[%emt 0:01:42]} 16. cxd4 {[%emt 0:03:50]} Ng4 {[%emt 0:09:07]} 17. h5 {[%emt 0:02:10]} Nxd4 {[%emt 0:10:41]} 18. hxg6 {[%emt 0:02:26]} Qb6 {[%emt 0:05:02]} 19. gxh7+ {[%emt 0:09:45]} Kh8 {[%emt 0:00:03]} 20. Be3 {[%emt 0:00:15]} Nxe3 {[%emt 0:05:56]} 21. Rxe3 {[%emt 0:13:01]} Bg4 {[%emt 0:00:19]} 22. Be2 {[%emt 0:04:30]} Nxe2+ {[%emt 0:01:39]} 23. Qxe2 {[%emt 0:00:20]} e5 {[%emt 0:00:28]} 24. Qb5 {[%emt 0:03:48]} Qxb5 {[%emt 0:07:26]} 25. axb5 {[%emt 0:00:02]} e4 {[%emt 0:00:07]} 26. Nh2 {[%emt 0:03:33]} Be6 {[%emt 0:00:15]} 27. Re2 {[%emt 0:01:05]} Kxh7 {[%emt 0:02:36]} 28. Nhf1 {[%emt 0:01:32]} Bd4 {[%emt 0:00:45]} 29. Rc1 {[%emt 0:03:49]} Bb6 {[%emt 0:00:15]} 30. Ne3 {[%emt 0:00:33]} Kg6 {[%emt 0:00:13]} 31. Rd2 {[%emt 0:00:36]} Rad8 {[%emt 0:00:14]} 32. b3 {[%emt 0:00:52]} Kg5 {[%emt 0:05:00]} 33. Rcd1 {[%emt 0:04:01]} d4 {[%emt 0:07:23]} 34. Nc4 {[%emt 0:14:21]} Bxc4 {[%emt 0:01:05]} 35. bxc4 {[%emt 0:00:17]} Kf4 {[%emt 0:00:03]} 36. Ne2+ {[%emt 0:02:02]} Ke5 {[%emt 0:00:02]} 37. Rc1 {[%emt 0:00:28]} Bc5 {[%emt 0:00:31]} 38. Kh2 {[%emt 0:00:32]} d3 {[%emt 0:00:59]} 0-1

[Event "FIDE WSTC Open 65 2025"]
[Site "Prague"]
[Date "2025.02.19"]
[Round "3.35"]
[White "Mlynek, Petr"]
[Black "Baum, Bernd"]
[Result "1/2-1/2"]
[Annotator "ChessBase"]
[ECO "D79"]
[WhiteElo "2023"]
[BlackElo "2219"]
[PlyCount "31"]
[EventDate "2025.02.17"]
[EventType "team-tourn"]
[EventCountry "CZE"]
[SourceTitle "playchess.com"]
[Source "ChessBase"]
[SourceQuality "1"]
[TimeControl "40/5400+30:1800+30"]

1. d4 {[%emt 0:00:04]} Nf6 {[%emt 0:00:13]} 2. c4 {[%emt 0:00:16]} g6 {[%emt 0:01:34]} 3. Nf3 {[%emt 0:00:20]} Bg7 {[%emt 0:00:57]} 4. g3 {[%emt 0:00:17]} c6 {[%emt 0:00:15]} 5. Bg2 {[%emt 0:00:31]} d5 {[%emt 0:00:19]} 6. cxd5 {[%emt 0:00:31]} cxd5 {[%emt 0:00:03]} 7. O-O {[%emt 0:00:22]} O-O {[%emt 0:00:04]} 8. Nc3 {[%emt 0:00:11]} Ne4 {[%emt 0:03:58]} 9. Bf4 {[%emt 0:03:01]} Nc6 {[%emt 0:09:02]} 10. Qb3 {[%emt 0:12:36]} Na5 {[%emt 0:07:37]} 11. Qb4 {[%emt 0:03:28]} Nxc3 {[%emt 0:01:30]} 12. Qxc3 {[%emt 0:03:00]} Nc6 {[%emt 0:01:22]} 13. Ne5 {[%emt 0:02:04]} Nxe5 {[%emt 0:00:52]} 14. Bxe5 {[%emt 0:00:22]} Bg4 {[%emt 0:02:57]} 15. Bxg7 {[%emt 0:01:31]} Kxg7 {[%emt 0:00:04]} 16. e3 {[%emt 0:00:20]} 1/2-1/2

[Event "FIDE WSTC Open 65 2025"]
[Site "Prague"]
[Date "2025.02.19"]
[Round "3.36"]
[White "Okrajek, Alexander"]
[Black "Navratil, Jiri"]
[Result "1/2-1/2"]
[Annotator "ChessBase"]
[ECO "D05"]
[WhiteElo "2200"]
[BlackElo "2025"]
[PlyCount "118"]
[EventDate "2025.02.17"]
[EventType "team-tourn"]
[EventCountry "CZE"]
[SourceTitle "playchess.com"]
[Source "ChessBase"]
[SourceQuality "1"]
[TimeControl "40/5400+30:1800+30"]

1. d4 {[%emt 0:00:16]} d5 {[%emt 0:00:11]} 2. Nf3 {[%emt 0:00:16]} Nf6 {[%emt 0:00:13]} 3. e3 {[%emt 0:00:27]} e6 {[%emt 0:00:23]} 4. Nbd2 {[%emt 0:00:31]} Be7 {[%emt 0:00:36]} 5. Bd3 {[%emt 0:01:30]} O-O {[%emt 0:00:16]} 6. O-O {[%emt 0:00:29]} b6 {[%emt 0:00:15]} 7. b3 {[%emt 0:03:11]} Bb7 {[%emt 0:00:28]} 8. Bb2 {[%emt 0:00:55]} Nbd7 {[%emt 0:01:20]} 9. c4 {[%emt 0:04:27]} Re8 {[%emt 0:01:01]} 10. Rc1 {[%emt 0:01:51]} Rc8 {[%emt 0:01:08]} 11. cxd5 {[%emt 0:03:26]} exd5 {[%emt 0:03:04]} 12. Ne5 {[%emt 0:02:59]} Nxe5 {[%emt 0:01:25]} 13. dxe5 {[%emt 0:00:20]} Nd7 {[%emt 0:00:33]} 14. Qg4 {[%emt 0:16:49]} Nc5 {[%emt 0:04:31]} 15. Bf5 {[%emt 0:03:43]} Rb8 {[%emt 0:00:16]} 16. e6 {[%emt 0:08:53]} g6 {[%emt 0:02:54]} 17. Nf3 {[%emt 0:10:39]} Bf6 {[%emt 0:01:34]} 18. exf7+ {[%emt 0:03:47]} Kxf7 {[%emt 0:00:01]} 19. Bxf6 {[%emt 0:00:19]} Qxf6 {[%emt 0:00:32]} 20. Bb1 {[%emt 0:01:10]} Re7 {[%emt 0:02:11]} 21. Rfd1 {[%emt 0:01:42]} Ne4 {[%emt 0:02:03]} 22. Bxe4 {[%emt 0:00:23]} dxe4 {[%emt 0:00:54]} 23. Ng5+ {[%emt 0:01:55]} Kg8 {[%emt 0:02:02]} 24. h4 {[%emt 0:01:53]} Rf8 {[%emt 0:02:37]} 25. Rc2 {[%emt 0:03:15]} h6 {[%emt 0:03:04]} 26. Nh3 {[%emt 0:00:18]} Kh7 {[%emt 0:18:36]} 27. Qg3 {[%emt 0:02:09]} c5 {[%emt 0:06:13]} 28. Rd6 {[%emt 0:01:49]} Re6 {[%emt 0:04:58]} 29. Rcd2 {[%emt 0:02:59]} Bc8 {[%emt 0:01:17]} 30. Rxe6 {[%emt 0:01:57]} Bxe6 {[%emt 0:00:37]} 31. Kh2 {[%emt 0:03:46]} Rg8 {[%emt 0:13:25]} 32. Qf4 {[%emt 0:02:55]} Qf5 {[%emt 0:05:13]} 33. Qxf5 {[%emt 0:01:47]} Bxf5 {[%emt 0:00:34]} 34. Nf4 {[%emt 0:00:10]} Rc8 {[%emt 0:02:19]} 35. Nd5 {[%emt 0:00:56]} Kg7 {[%emt 0:01:51]} 36. Ne7 {[%emt 0:02:00]} Rc7 {[%emt 0:00:45]} 37. Nxf5+ {[%emt 0:00:11]} gxf5 {[%emt 0:00:09]} 38. Kg3 {[%emt 0:00:18]} b5 {[%emt 0:01:05]} 39. Kf4 {[%emt 0:01:16]} Kf6 {[%emt 0:02:49]} 40. Rd6+ {[%emt 0:06:29]} Ke7 {[%emt 0:00:27]} 41. Ke5 {[%emt 0:31:43]} c4 {[%emt 0:30:19]} 42. bxc4 {[%emt 0:00:33]} bxc4 {[%emt 0:01:51]} 43. Rd2 {[%emt 0:00:43]} Rc5+ {[%emt 0:02:09]} 44. Kd4 {[%emt 0:00:43]} Kd6 {[%emt 0:02:09]} 45. Rc2 {[%emt 0:00:00]} c3 {[%emt 0:00:00]} 46. h5 {[%emt 0:00:00]} a6 {[%emt 0:00:00]} 47. a3 {[%emt 0:00:00]} Ra5 {[%emt 0:00:00]} 48. Rxc3 {[%emt 0:00:00]} Ra4+ {[%emt 0:00:00]} 49. Rc4 {[%emt 0:00:00]} Rxa3 {[%emt 0:00:00]} 50. Rb4 {[%emt 0:00:00]} Rd3+ {[%emt 0:00:00]} 51. Kc4 {[%emt 0:00:00]} Rd2 {[%emt 0:00:00]} 52. Rb6+ {[%emt 0:00:00]} Ke5 {[%emt 0:00:00]} 53. f4+ {[%emt 0:00:00]} exf3 {[%emt 0:00:00]} 54. gxf3 {[%emt 0:00:00]} f4 {[%emt 0:00:00]} 55. exf4+ {[%emt 0:00:00]} Kxf4 {[%emt 0:00:00]} 56. Rxh6 {[%emt 0:00:00]} Kxf3 {[%emt 0:00:00]} 57. Rxa6 {[%emt 0:00:00]} Rh2 {[%emt 0:00:24]} 58. h6 {[%emt 0:00:00]} Kf4 {[%emt 0:00:10]} 59. Kd4 {[%emt 0:00:00]} Kf5 {[%emt 0:00:14]} 1/2-1/2

[Event "FIDE WSTC Open 65 2025"]
[Site "Prague"]
[Date "2025.02.19"]
[Round "3.37"]
[White "Mojzis, Jaroslav"]
[Black "Glienke, Manfred"]
[Result "0-1"]
[Annotator "ChessBase"]
[ECO "A11"]
[WhiteElo "2089"]
[BlackElo "2187"]
[PlyCount "84"]
[EventDate "2025.02.17"]
[EventType "team-tourn"]
[EventCountry "CZE"]
[SourceTitle "playchess.com"]
[Source "ChessBase"]
[SourceQuality "1"]
[TimeControl "40/5400+30:1800+30"]

1. Nf3 {[%emt 0:00:16]} Nf6 {[%emt 0:00:09]} 2. g3 {[%emt 0:00:15]} d5 {[%emt 0:00:09]} 3. Bg2 {[%emt 0:00:10]} Bf5 {[%emt 0:00:32]} 4. O-O {[%emt 0:00:52]} e6 {[%emt 0:00:08]} 5. c4 {[%emt 0:01:28]} c6 {[%emt 0:00:18]} 6. Qb3 {[%emt 0:00:26]} Qb6 {[%emt 0:00:07]} 7. d3 {[%emt 0:00:14]} Nbd7 {[%emt 0:02:32]} 8. cxd5 {[%emt 0:07:53]} exd5 {[%emt 0:00:42]} 9. Be3 {[%emt 0:06:59]} Qxb3 {[%emt 0:06:50]} 10. axb3 {[%emt 0:01:46]} a6 {[%emt 0:01:26]} 11. Bd2 {[%emt 0:03:59]} Be7 {[%emt 0:18:16]} 12. b4 {[%emt 0:01:52]} O-O {[%emt 0:02:25]} 13. Bc3 {[%emt 0:00:19]} h6 {[%emt 0:00:50]} 14. Nbd2 {[%emt 0:01:49]} Rfe8 {[%emt 0:02:22]} 15. Nb3 {[%emt 0:00:50]} Bd6 {[%emt 0:02:18]} 16. Na5 {[%emt 0:04:33]} Rab8 {[%emt 0:00:48]} 17. Rfe1 {[%emt 0:01:08]} Ne5 {[%emt 0:11:57]} 18. Nd4 {[%emt 0:14:01]} Bh7 {[%emt 0:08:03]} 19. Rad1 {[%emt 0:02:53]} Bc7 {[%emt 0:03:24]} 20. e4 {[%emt 0:08:06]} Ned7 {[%emt 0:09:54]} 21. exd5 {[%emt 0:03:40]} Rxe1+ {[%emt 0:01:43]} 22. Rxe1 {[%emt 0:00:09]} cxd5 {[%emt 0:01:47]} 23. Bh3 {[%emt 0:06:11]} Ne5 {[%emt 0:05:43]} 24. f4 {[%emt 0:05:14]} Nxd3 {[%emt 0:02:40]} 25. Re7 {[%emt 0:00:40]} Bd6 {[%emt 0:01:19]} 26. Rxb7 {[%emt 0:02:48]} Rxb7 {[%emt 0:00:08]} 27. Nxb7 {[%emt 0:00:07]} Bxb4 {[%emt 0:01:01]} 28. Bf1 {[%emt 0:03:24]} Bxc3 {[%emt 0:01:32]} 29. bxc3 {[%emt 0:00:18]} Be4 {[%emt 0:00:46]} 30. h3 {[%emt 0:02:06]} Nd7 {[%emt 0:02:22]} 31. Bxd3 {[%emt 0:00:42]} Bxd3 {[%emt 0:00:07]} 32. Kf2 {[%emt 0:00:06]} Kf8 {[%emt 0:01:31]} 33. Ke3 {[%emt 0:00:15]} Bf1 {[%emt 0:00:10]} 34. h4 {[%emt 0:00:15]} Nf6 {[%emt 0:04:33]} 35. f5 {[%emt 0:12:33]} Ne4 {[%emt 0:01:03]} 36. Kf4 {[%emt 0:00:28]} Nxc3 {[%emt 0:00:32]} 37. Nc6 {[%emt 0:02:06]} Bb5 {[%emt 0:01:37]} 38. Nb4 {[%emt 0:02:58]} Ke7 {[%emt 0:02:54]} 39. Ke5 {[%emt 0:02:46]} f6+ {[%emt 0:00:19]} 40. Kf4 {[%emt 0:01:19]} d4 {[%emt 0:00:33]} 41. Na5 {[%emt 0:31:18]} Kd6 {[%emt 0:33:32]} 42. Nb3 {[%emt 0:00:00]} Nd5+ {[%emt 0:00:00]} 0-1